bitfinex/quotes_BTCUSD_20250421
["timestamp","ask_amount","ask_price","bid_price","bid_amount"]
[1745206169809,0.0477,87171.0,87155.0,0.10536]
[1745206170469,0.0486,87170.0,87156.0,1.08724]
[1745206170769,0.0486,87170.0,87157.0,0.10536]
[1745206171153,0.0496,87170.0,87157.0,0.10536]
[1745206173570,0.0496,87170.0,87158.0,0.00229428]
[1745206173909,0.0496,87170.0,87157.0,0.10536]
[1745206174777,0.0496,87170.0,87158.0,0.00229428]
[1745206175115,0.0496,87170.0,87159.0,0.10536]
[1745206175324,0.0496,87170.0,87160.0,0.0022942]
[1745206177259,0.0426,87170.0,87160.0,0.0022942]
[1745206180283,0.0426,87170.0,87159.0,0.10536]
[1745206184135,0.0426,87170.0,87160.0,0.98192]
[1745206184436,0.0426,87170.0,87161.0,0.10536]
[1745206185126,0.0356,87170.0,87161.0,0.10536]
[1745206189613,0.0356,87170.0,87162.0,0.98192]
[1745206189987,0.0356,87170.0,87163.0,0.34229422]
[1745206190186,0.0284,87170.0,87163.0,0.34]
[1745206190392,0.0284,87170.0,87164.0,0.00229411]
[1745206190968,0.01968,87170.0,87164.0,0.00229411]
[1745206191139,0.01968,87170.0,87163.0,0.34]
[1745206192482,0.01968,87170.0,87164.0,0.00229412]
[1745206192622,0.01968,87170.0,87163.0,0.34]
[1745206193036,0.01268,87170.0,87163.0,0.34]
[1745206194465,0.01268,87170.0,87164.0,0.10528]
[1745206196656,0.01268,87170.0,87162.0,0.98192]
[1745206196859,0.01268,87170.0,87165.0,0.10528]
[1745206198345,0.01268,87170.0,87166.0,0.34]
[1745206198959,0.01268,87170.0,87167.0,0.00229416]
[1745206200546,0.27839894,87183.0,87167.0,0.00229416]
[1745206200754,0.27139894,87183.0,87167.0,0.00229416]
[1745206203374,0.0973,87182.0,87167.0,0.00229416]
[1745206208260,0.0973,87182.0,87168.0,0.10528]
[1745206208483,0.05550314,87181.0,87168.0,0.10528]
[1745206209594,0.0973,87182.0,87168.0,0.10528]
[1745206209769,0.05550314,87181.0,87168.0,0.10528]
[1745206211133,0.0973,87182.0,87168.0,0.10528]
[1745206211316,0.05550314,87181.0,87168.0,0.10528]
[1745206212174,0.0973,87182.0,87168.0,0.10528]
[1745206213929,0.0973,87182.0,87169.0,0.00229391]
[1745206215355,0.0973,87182.0,87170.0,0.11944791]
[1745206215583,0.27139894,87183.0,87170.0,0.11944791]
[1745206215905,0.26439894,87183.0,87170.0,0.11944791]
[1745206216052,0.25523895,87183.0,87170.0,0.11944791]
[1745206216304,0.01454085,87214.0,87170.0,0.11944791]
[1745206216305,0.05550314,87203.0,87171.0,0.34]
[1745206216534,0.05550314,87203.0,87173.0,0.34]
[1745206216689,0.2113384,87217.0,87176.0,0.0454]
[1745206216889,0.26684154,87217.0,87179.0,0.0454]
[1745206217141,0.26684154,87217.0,87181.0,0.34]
[1745206217351,0.2113384,87217.0,87183.0,0.34]
[1745206217596,0.2113384,87217.0,87185.0,0.34]
[1745206217802,0.2113384,87229.0,87189.0,0.11944791]
[1745206217949,0.26684154,87229.0,87193.0,0.34]
[1745206218164,0.09185741,87221.0,87195.0,0.34]
[1745206218378,0.09185741,87221.0,87193.0,0.34]
[1745206218379,0.09185741,87221.0,87197.0,0.34]
[1745206218583,0.0452,87219.0,87199.0,0.34]
[1745206218960,0.0452,87219.0,87201.0,0.34]
[1745206219442,0.0452,87219.0,87203.0,0.34]
[1745206220555,0.04533544,87219.0,87204.0,0.10524]
[1745206221480,0.04533544,87219.0,87205.0,0.00229307]
[1745206221870,0.04533544,87219.0,87206.0,0.98176]
[1745206223294,0.04533544,87219.0,87207.0,1.0868]
[1745206223979,0.03833544,87219.0,87207.0,1.0868]
[1745206224747,0.03833544,87219.0,87208.0,0.10516]
[1745206230938,0.03833544,87219.0,87209.0,0.00229301]
[1745206231776,0.03133544,87219.0,87209.0,0.00229301]
[1745206233534,0.03133544,87219.0,87208.0,0.10516]
[1745206235752,0.03133544,87219.0,87207.0,0.98164]
[1745206235969,0.03133544,87219.0,87208.0,0.10512]
[1745206237077,0.03133544,87219.0,87207.0,0.98164]
[1745206237304,0.0958,87210.0,87209.0,0.10512]
[1745206237524,0.16812072,87210.0,87208.0,0.10512]
[1745206237724,0.11944791,87209.0,87208.0,0.10512]
[1745206239641,0.11244791,87209.0,87208.0,0.44512]
[1745206240194,0.32378631,87209.0,87208.0,0.44512]
[1745206240568,0.37077602,87209.0,87208.0,0.44512]
[1745206244925,0.37077602,87209.0,87208.0,0.34]
[1745206245124,0.37077602,87209.0,87207.0,0.98164]
[1745206245125,0.01452019,87208.0,87207.0,0.98164]
[1745206245356,0.49660964,87208.0,87207.0,1.08676]
[1745206245923,0.40080964,87208.0,87207.0,0.10512]
[1745206246370,0.49660964,87208.0,87207.0,0.10512]
[1745206246584,0.49660964,87208.0,87205.0,0.98152]
[1745206246792,0.043,87206.0,87205.0,0.98152]
[1745206246927,0.25824791,87206.0,87205.0,1.08664]
[1745206247123,0.2782919,87206.0,87205.0,0.98152]
[1745206247767,0.2782919,87206.0,87205.0,1.08664]
[1745206248571,0.11174399,87201.0,87200.0,1.32156]
[1745206248773,0.4896303,87201.0,87200.0,1.42668]
[1745206250628,0.4896303,87201.0,87200.0,1.08668]
[1745206252757,0.4896303,87201.0,87200.0,1.0866]
[1745206253374,0.4896303,87201.0,87173.0,0.0004223]
[1745206253375,0.0973,87185.0,87173.0,0.0004223]
[1745206253528,0.33078631,87184.0,87173.0,0.0004223]
[1745206254104,0.0489,87183.0,87173.0,0.0004223]
[1745206254332,0.16795105,87182.0,87173.0,0.0004223]
[1745206254505,0.04850314,87180.0,87173.0,0.0004223]
[1745206254708,0.04850314,87180.0,87173.0,0.00087384]
[1745206254909,0.16834791,87179.0,87173.0,0.0470975]
[1745206255149,0.04150314,87176.0,87173.0,0.0470975]
[1745206255376,0.21674791,87175.0,87174.0,1.08676]
[1745206256550,0.21674791,87175.0,87174.0,1.42676]
[1745206256967,0.04150314,87176.0,87175.0,0.34]
[1745206258637,0.04150314,87182.0,87175.0,0.34]
[1745206258846,0.2113384,87184.0,87176.0,0.00229401]
[1745206259075,0.2113384,87184.0,87175.0,0.34]
[1745206260181,0.04150314,87180.0,87175.0,0.34]
[1745206260416,0.04150314,87180.0,87176.0,0.10504]
[1745206262613,0.03450314,87180.0,87176.0,0.10504]
[1745206263266,0.03450314,87180.0,87177.0,0.10504]
[1745206264172,0.03450314,87180.0,87178.0,0.00229391]
[1745206264459,0.03450314,87180.0,87177.0,0.10504]
[1745206265306,0.2113384,87184.0,87177.0,0.10504]
[1745206265307,0.13054027,87184.0,87178.0,0.00229392]
[1745206265511,0.17354027,87206.0,87178.0,0.12174183]
[1745206265835,0.29298818,87206.0,87178.0,0.12174183]
[1745206266010,0.24498818,87206.0,87178.0,0.12174183]
[1745206266219,0.12554027,87206.0,87179.0,0.16554791]
[1745206266448,0.12554027,87206.0,87180.0,0.00229342]
[1745206266597,0.12554027,87206.0,87181.0,0.11944791]
[1745206266798,0.12554027,87206.0,87182.0,0.34229339]
[1745206267019,0.12554027,87206.0,87182.0,0.34]
[1745206267454,0.12554027,87206.0,87184.0,0.34]
[1745206267603,0.12554027,87206.0,87185.0,0.00229338]
[1745206268308,0.03450314,87212.0,87187.0,0.34]
[1745206268567,0.03450314,87212.0,87189.0,0.34]
[1745206268776,0.03450314,87212.0,87191.0,0.34]
[1745206268907,0.03450314,87211.0,87193.0,0.34]
[1745206269115,0.03450314,87211.0,87195.0,0.34]
[1745206269317,0.03450314,87211.0,87197.0,0.34]
[1745206269523,0.03450314,87207.0,87197.0,0.34]
[1745206269989,0.03450314,87207.0,87199.0,0.34]
[1745206270441,0.02750314,87207.0,87199.0,0.34]
[1745206272416,0.02750314,87207.0,87200.0,0.00229332]
[1745206272627,0.16744791,87206.0,87200.0,0.00229332]
[1745206272846,0.16744791,87206.0,87201.0,0.10504]
[1745206273603,0.16844791,87206.0,87202.0,0.98168]
[1745206273843,0.16844791,87206.0,87203.0,1.08672]
[1745206274041,0.16844791,87206.0,87204.0,1.08672]
[1745206275208,0.12554027,87205.0,87204.0,1.08672]
[1745206275414,0.32054948,87205.0,87204.0,1.08672]
[1745206276475,0.36854948,87205.0,87204.0,1.08672]
[1745206277286,0.38309033,87205.0,87204.0,1.08672]
[1745206277507,0.38309033,87205.0,87204.0,0.98168]
[1745206277691,0.38309033,87205.0,87204.0,1.08672]
[1745206278067,0.37609033,87205.0,87204.0,1.08672]
[1745206279735,0.37609033,87205.0,87204.0,0.98168]
[1745206279942,0.37609033,87205.0,87204.0,1.08672]
[1745206282944,0.37609033,87205.0,87204.0,1.08664]
[1745206285873,0.36909033,87205.0,87204.0,1.08664]
[1745206287194,0.35454948,87205.0,87204.0,1.08664]
[1745206287347,0.11154027,87205.0,87204.0,1.08664]
[1745206287556,0.11154027,87218.0,87204.0,1.08664]
[1745206287762,0.11154027,87218.0,87204.0,1.08864]
[1745206288088,0.11154027,87218.0,87205.0,0.34]
[1745206288286,0.11154027,87218.0,87206.0,0.00229309]
[1745206288922,0.0296613,87212.0,87205.0,0.34]
[1745206289123,0.0296613,87212.0,87207.0,0.10496]
[1745206289331,0.01250314,87217.0,87207.0,0.10496]
[1745206289536,0.02394231,87212.0,87205.0,0.34]
[1745206289741,0.02394231,87212.0,87209.0,0.34]
[1745206290939,0.11167569,87218.0,87210.0,0.00229313]
[1745206291507,0.02394231,87232.0,87211.0,0.0261]
[1745206292363,0.02394231,87232.0,87212.0,0.10492]
[1745206292564,0.02394231,87232.0,87213.0,0.10492]
[1745206293613,0.01778731,87232.0,87213.0,0.10492]
[1745206294432,0.11154027,87233.0,87213.0,0.10492]
[1745206294644,0.01778731,87232.0,87213.0,0.10492]
[1745206295962,0.01778731,87232.0,87214.0,0.34]
[1745206297773,0.01778731,87232.0,87215.0,0.00229267]
[1745206298003,0.09375296,87233.0,87216.0,0.11944791]
[1745206298214,0.07649647,87233.0,87217.0,0.01025052]
[1745206298419,0.05474647,87233.0,87219.0,0.34]
[1745206298667,0.05474647,87233.0,87221.0,0.34]
[1745206298983,0.05474647,87233.0,87223.0,0.34]
[1745206299743,0.05474647,87233.0,87224.0,0.00795818]
[1745206299946,0.04493648,87233.0,87224.0,0.00795818]
[1745206301112,0.04493648,87233.0,87225.0,0.11287818]
[1745206301288,0.03793648,87233.0,87225.0,0.11287818]
[1745206301747,0.000845,87234.0,87225.0,0.11287818]
[1745206301952,0.000845,87234.0,87226.0,0.00795818]
[1745206302871,0.000845,87234.0,87227.0,0.00795818]
[1745206303736,0.000845,87234.0,87228.0,0.00795818]
[1745206304321,0.000845,87234.0,87225.0,0.10492]
[1745206307124,0.014841,87240.0,87225.0,0.10492]
[1745206307645,0.0496,87244.0,87225.0,0.10492]
[1745206307901,0.014841,87240.0,87225.0,0.10492]
[1745206309024,0.007841,87240.0,87225.0,0.10492]
[1745206310063,0.0482858,87244.0,87225.0,0.10492]
[1745206310404,0.0482858,87244.0,87226.0,0.98124]
[1745206315350,0.0482858,87244.0,87227.0,0.1048]
[1745206319993,0.0482858,87244.0,87228.0,0.9812]
[1745206321207,0.0482858,87244.0,87228.0,0.9822]
[1745206321847,0.09185741,87237.0,87228.0,0.001]
[1745206322051,0.01454085,87234.0,87229.0,0.1048]
[1745206322261,0.01454085,87230.0,87229.0,0.1048]
[1745206322558,0.17898876,87230.0,87229.0,0.1048]
[1745206323028,0.22398876,87230.0,87229.0,0.1048]
[1745206323960,0.10454085,87229.0,87228.0,0.001]
[1745206324192,0.10454085,87229.0,87228.0,0.1058]
[1745206324193,0.22398876,87229.0,87228.0,0.1058]
[1745206324409,0.01454085,87226.0,87219.0,0.9812]
[1745206324524,0.03793648,87227.0,87220.0,0.1048]
[1745206324525,0.01454085,87222.0,87220.0,0.1048]
[1745206324721,0.01454085,87220.0,87219.0,0.9812]
[1745206324922,0.11944791,87220.0,87219.0,1.086]
[1745206325212,0.045,87221.0,87219.0,1.086]
[1745206325419,0.11944791,87220.0,87219.0,1.086]
[1745206326030,0.13398876,87220.0,87219.0,0.9812]
[1745206326180,0.13398876,87220.0,87219.0,1.086]
[1745206326566,0.18338876,87220.0,87219.0,1.086]
[1745206327497,0.23258876,87220.0,87219.0,1.086]
[1745206327727,0.11314085,87219.0,87199.0,0.98136]
[1745206327868,0.01454085,87217.0,87211.0,0.10484]
[1745206328073,0.01454085,87213.0,87211.0,0.10484]
[1745206328315,0.22132524,87212.0,87211.0,0.10484]
[1745206330606,0.27052524,87212.0,87211.0,0.10484]
[1745206332651,0.25598439,87212.0,87199.0,0.98136]
[1745206332851,0.27052524,87212.0,87211.0,0.14019977]
[1745206333125,0.03793648,87212.0,87211.0,0.15170046]
[1745206334358,0.15738439,87212.0,87211.0,0.15170046]
[1745206335641,0.17192524,87212.0,87211.0,0.15170046]
[1745206335873,0.22132524,87212.0,87211.0,0.15170046]
[1745206336072,0.27052524,87212.0,87211.0,0.10484]
[1745206348208,0.01454085,87211.0,87210.0,0.04637046]
[1745206348413,0.13398876,87211.0,87210.0,0.15117046]
[1745206350897,0.13498876,87211.0,87210.0,0.15017046]
[1745206351101,0.13398876,87211.0,87210.0,0.15017046]
[1745206351323,0.13498876,87211.0,87210.0,0.15017046]
[1745206351716,0.17292524,87211.0,87210.0,0.15017046]
[1745206355636,0.16292524,87211.0,87210.0,0.15017046]
[1745206355841,0.15838439,87211.0,87210.0,0.1048]
[1745206356631,0.15826809,87211.0,87210.0,0.1048]
[1745206356816,0.20346809,87211.0,87210.0,0.1048]
[1745206357389,0.03793648,87208.0,87199.0,0.98136]
[1745206357604,0.01454085,87201.0,87200.0,0.1048]
[1745206357786,0.17918876,87201.0,87200.0,0.1048]
[1745206358425,0.17918876,87201.0,87199.0,0.98149542]
[1745206358675,0.17918876,87200.0,87199.0,0.98149542]
[1745206358899,0.17918876,87200.0,87199.0,1.08629542]
[1745206360426,0.21712524,87200.0,87199.0,1.08629542]
[1745206361266,0.21712524,87200.0,87199.0,0.1048]
[1745206362048,0.26392524,87200.0,87199.0,0.1048]
[1745206362251,0.01454085,87198.0,87137.0,0.28034311]
[1745206362477,0.17192524,87200.0,87182.0,0.00045154]
[1745206362478,0.01454085,87186.0,87182.0,0.00045154]
[1745206362868,0.092,87187.0,87182.0,0.00045154]
[1745206362869,0.01454085,87184.0,87182.0,0.00045154]
[1745206363092,0.13398876,87183.0,87182.0,0.00045154]
[1745206364165,0.17192524,87183.0,87182.0,0.00045154]
[1745206364372,0.21712524,87183.0,87182.0,0.00045154]
[1745206365389,0.21712524,87183.0,87182.0,0.10525154]
[1745206365933,0.26502524,87183.0,87182.0,0.10525154]
[1745206366195,0.26502524,87183.0,87182.0,0.00045154]
[1745206366398,0.26502524,87183.0,87182.0,0.10525154]
[1745206373015,0.26502524,87183.0,87182.0,0.00045154]
[1745206373220,0.26502524,87183.0,87182.0,0.10529154]
[1745206374597,0.25502524,87183.0,87182.0,0.10529154]
[1745206374969,0.25502524,87183.0,87182.0,0.10521154]
[1745206375151,0.014511,87175.0,87171.0,0.98176]
[1745206375383,0.21474791,87174.0,87172.0,0.10476]
[1745206376560,0.21474791,87174.0,87171.0,0.98176]
[1745206376877,0.21474791,87174.0,87172.0,0.10476]
[1745206377101,0.01454085,87173.0,87172.0,0.10476]
[1745206377320,0.13398876,87173.0,87172.0,0.10476]
[1745206378378,0.13398876,87173.0,87171.0,0.98176]
[1745206378589,0.01454085,87173.0,87172.0,0.10476]
[1745206378709,0.13398876,87173.0,87172.0,0.10476]
[1745206378923,0.18348876,87173.0,87172.0,0.10476]
[1745206380840,0.2208555,87173.0,87172.0,0.10476]
[1745206381382,0.01454085,87170.0,87168.0,0.04541792]
[1745206381539,0.18348876,87169.0,87168.0,0.04541792]
[1745206381747,0.18348876,87169.0,87168.0,0.10476]
[1745206382751,0.18348876,87169.0,87168.0,0.15034064]
[1745206383390,0.18348876,87169.0,87168.0,0.10476]
[1745206385606,0.18448876,87169.0,87168.0,0.10476]
[1745206385821,0.23198876,87169.0,87168.0,0.10476]
[1745206389763,0.05190759,87161.0,87160.0,0.04601168]
[1745206389938,0.2171555,87161.0,87160.0,0.15077168]
[1745206390105,0.2171555,87161.0,87160.0,0.10476]
[1745206392987,0.2171555,87161.0,87159.0,0.04708446]
[1745206393195,0.01454085,87158.0,87152.0,0.98208]
[1745206393400,0.17978876,87153.0,87152.0,0.98208]
[1745206393864,0.17978876,87153.0,87152.0,0.98308]
[1745206393865,0.13398876,87153.0,87152.0,0.98308]
[1745206394578,0.13398876,87153.0,87152.0,0.98321559]
[1745206397154,0.11944791,87153.0,87152.0,0.98321559]
[1745206398696,0.1713555,87153.0,87152.0,0.98321559]
[1745206398889,0.1713555,87153.0,87152.0,1.08797559]
[1745206401472,0.2169555,87153.0,87152.0,1.08797559]
[1745206401891,0.2650555,87153.0,87152.0,1.08797559]
[1745206402303,0.01454085,87141.0,87128.0,0.98228]
[1745206402527,0.24895656,87140.0,87137.0,0.04616265]
[1745206402721,0.24895656,87140.0,87134.0,0.10476]
[1745206402877,0.24883994,87140.0,87134.0,0.10476]
[1745206403089,0.24883994,87140.0,87134.0,0.15218273]
[1745206403846,0.24883994,87140.0,87135.0,0.10476]
[1745206406863,0.13398876,87139.0,87135.0,0.10476]
[1745206407282,0.03580865,87138.0,87135.0,0.10476]
[1745206407507,0.01454085,87136.0,87135.0,0.10476]
[1745206407661,0.13398876,87136.0,87135.0,0.10476]
[1745206408174,0.21539741,87136.0,87135.0,0.10476]
[1745206408632,0.26349741,87136.0,87135.0,0.10476]
[1745206409345,0.01454085,87122.0,87117.0,0.0004227]
[1745206409571,0.0456,87119.0,87118.0,0.10468]
[1745206409864,0.16504791,87119.0,87118.0,0.10468]
[1745206410275,0.16504791,87119.0,87118.0,0.15224788]
[1745206410915,0.12044791,87119.0,87118.0,0.15224788]
[1745206411086,0.13398876,87119.0,87118.0,0.15224788]
[1745206411281,0.12044791,87119.0,87118.0,0.15224788]
[1745206411507,0.001,87119.0,87118.0,0.49224788]
[1745206412317,0.12044791,87119.0,87118.0,0.49224788]
[1745206414032,0.12044791,87119.0,87118.0,0.38756788]
[1745206414209,0.12044791,87119.0,87118.0,0.49224788]
[1745206416119,0.13793296,87119.0,87118.0,0.49224788]
[1745206420948,0.13793296,87119.0,87118.0,0.10468]
[1745206422061,0.13793296,87119.0,87118.0,0.15113692]
[1745206430270,0.13763535,87119.0,87118.0,0.15113692]
[1745206431051,0.13763535,87119.0,87118.0,1.13369692]
[1745206432671,0.23373535,87119.0,87118.0,1.13369692]
[1745206432975,0.23373535,87119.0,87118.0,1.13373692]
[1745206437379,0.23373535,87119.0,87118.0,1.13361692]
[1745206437721,0.2482762,87119.0,87118.0,1.13361692]
[1745206438384,0.2482762,87119.0,87118.0,1.08716]
[1745206440133,0.2482762,87119.0,87118.0,0.1046]
[1745206440539,0.23373535,87119.0,87118.0,0.1046]
[1745206440744,0.13763535,87119.0,87118.0,0.1046]
[1745206443900,0.13833774,87119.0,87118.0,0.1046]
[1745206444358,0.01888983,87119.0,87118.0,0.1046]
[1745206448314,0.01888983,87119.0,87118.0,1.0872]
[1745206448673,0.01888983,87119.0,87118.0,1.08724]
[1745206450146,0.01888983,87119.0,87118.0,1.08824]
[1745206451680,0.01188983,87119.0,87118.0,1.08824]
[1745206452626,0.00998983,87119.0,87118.0,1.08824]
[1745206454261,0.00070239,87119.0,87118.0,1.08824]
[1745206456279,0.00070239,87119.0,87118.0,0.9836]
[1745206456484,0.00070239,87119.0,87118.0,1.0882]
[1745206459544,0.03890239,87121.0,87118.0,1.08890239]
[1745206459805,0.1583503,87121.0,87118.0,1.08890239]
[1745206460126,0.00928744,87120.0,87118.0,1.08890239]
[1745206463801,0.12873535,87120.0,87118.0,1.08890239]
[1745206464493,0.11944791,87119.0,87118.0,0.98430239]
[1745206464740,0.16594791,87119.0,87118.0,1.08890239]
[1745206466013,0.17523535,87119.0,87118.0,1.08890239]
[1745206466998,0.16823535,87119.0,87118.0,1.08890239]
[1745206470976,0.16823535,87119.0,87118.0,1.0872]
[1745206471138,0.16823535,87119.0,87118.0,1.08790239]
[1745206473667,0.1827762,87119.0,87118.0,1.08790239]
[1745206473986,0.1827762,87119.0,87118.0,0.98330239]
[1745206474142,0.1827762,87119.0,87118.0,1.08782239]
[1745206474744,0.1757762,87119.0,87118.0,1.08782239]
[1745206479192,0.2256762,87119.0,87118.0,1.08782239]
[1745206482612,0.2186762,87119.0,87118.0,1.08782239]
[1745206486729,0.21615871,87119.0,87118.0,1.08782239]
[1745206493057,0.01454085,87118.0,87105.0,0.98268]
[1745206493260,0.01454085,87116.0,87106.0,0.10452]
[1745206493466,0.01454085,87114.0,87106.0,0.10452]
[1745206493675,0.01454085,87112.0,87106.0,0.10452]
[1745206493869,0.11944791,87111.0,87106.0,0.10452]
[1745206495430,0.00228744,87110.0,87106.0,0.10452]
[1745206495651,0.11944791,87109.0,87106.0,0.10452]
[1745206497006,0.047,87108.0,87106.0,0.10452]
[1745206497158,0.11944791,87107.0,87106.0,0.10452]
[1745206501222,0.12173535,87107.0,87106.0,0.10452]
[1745206501556,0.1362762,87107.0,87106.0,0.10452]
[1745206501758,0.1859762,87107.0,87106.0,0.10452]
[1745206502961,0.1789762,87107.0,87106.0,0.10452]
[1745206508527,0.1789762,87107.0,87075.0,0.0064]
[1745206508528,0.001,87094.0,87058.0,0.02905453]
[1745206508741,0.001,87094.0,87059.0,1.20894418]
[1745206508968,0.001,87094.0,87059.0,1.10320791]
[1745206509262,0.0464,87094.0,87060.0,0.10444]
[1745206509408,0.0464,87094.0,87061.0,0.22388791]
[1745206510788,0.0394,87094.0,87062.0,0.006]
[1745206510992,0.0394,87094.0,87063.0,0.11944791]
[1745206511284,0.0394,87094.0,87064.0,0.006]
[1745206511424,0.0394,87094.0,87065.0,0.11944791]
[1745206512926,0.04168744,87094.0,87065.0,0.11944791]
[1745206513702,0.0467,87093.0,87065.0,0.11944791]
[1745206514063,0.05,87087.0,87065.0,0.11944791]
[1745206514418,0.05,87087.0,87066.0,0.10444]
[1745206514625,0.01529733,87087.0,87067.0,0.11944791]
[1745206514934,0.01529733,87087.0,87068.0,0.10444]
[1745206515892,0.0454,87086.0,87068.0,0.10444]
[1745206517912,0.01529733,87087.0,87069.0,0.11944791]
[1745206518129,0.0454,87097.0,87070.0,0.11044]
[1745206518417,0.0384,87097.0,87071.0,0.1217441]
[1745206518644,0.0384,87097.0,87072.0,0.007]
[1745206518847,0.0384,87097.0,87073.0,0.12174409]
[1745206519335,0.0384,87097.0,87074.0,0.10444]
[1745206519532,0.0384,87097.0,87075.0,0.1217441]
[1745206519730,0.0384,87097.0,87075.0,0.11944791]
[1745206520353,0.0384,87097.0,87075.0,0.12174411]
[1745206520559,0.0384,87097.0,87075.0,0.11944791]
[1745206521723,0.0384,87097.0,87075.0,0.12813657]
[1745206523766,0.0384,87097.0,87076.0,0.0022962]
[1745206523965,0.0467,87101.0,87077.0,0.22388791]
[1745206524188,0.01529733,87099.0,87077.0,0.22388791]
[1745206524431,0.01529733,87099.0,87078.0,0.00229605]
[1745206524628,0.01529733,87099.0,87079.0,0.11944791]
[1745206525194,0.01529733,87099.0,87080.0,0.34]
[1745206525375,0.01529733,87099.0,87082.0,0.34]
[1745206525577,0.01529733,87099.0,87084.0,0.34]
[1745206525790,0.00670822,87099.0,87086.0,0.34]
[1745206526014,0.0467,87101.0,87086.0,0.34]
[1745206526215,0.0397,87101.0,87086.0,0.34]
[1745206526526,0.00670822,87100.0,87086.0,0.34]
[1745206527976,0.00670822,87100.0,87088.0,0.34]
[1745206529184,0.00670822,87100.0,87087.0,0.9828]
[1745206530707,0.00670822,87100.0,87088.0,0.00229605]
[1745206531334,0.00670822,87100.0,87089.0,0.01441512]
[1745206531728,0.00670822,87100.0,87090.0,0.00229605]
[1745206532301,0.00670822,87100.0,87091.0,0.01405018]
[1745206532731,0.00670822,87100.0,87092.0,0.10436]
[1745206533022,0.00670822,87100.0,87093.0,0.00229605]
[1745206533390,0.00670822,87100.0,87094.0,0.01440251]
[1745206533935,0.03940822,87101.0,87092.0,0.10436]
[1745206534432,0.03940822,87101.0,87093.0,0.01440664]
[1745206534909,0.03940822,87101.0,87094.0,0.00229604]
[1745206535223,0.0474,87100.0,87095.0,0.10432]
[1745206536679,0.38604814,87118.0,87096.0,0.01669859]
[1745206536936,0.38604814,87118.0,87097.0,0.16634791]
[1745206537137,0.38604814,87118.0,87098.0,0.00229566]
[1745206537274,0.38604814,87118.0,87099.0,0.11944791]
[1745206537466,0.38032338,87118.0,87100.0,0.00229559]
[1745206537700,0.004,87129.0,87101.0,0.0396]
[1745206537903,0.004,87129.0,87102.0,0.01434062]
[1745206538548,0.004,87129.0,87103.0,0.11944791]
[1745206538721,0.004,87129.0,87103.0,0.12795184]
[1745206538939,0.004,87129.0,87104.0,0.00031595]
[1745206539250,0.004,87129.0,87105.0,0.11944791]
[1745206539505,0.004,87129.0,87106.0,0.4446464]
[1745206539704,0.0474,87128.0,87108.0,0.34]
[1745206539897,0.0485,87127.0,87108.0,0.45944791]
[1745206541650,0.0415,87127.0,87108.0,0.45944791]
[1745206542370,0.0415,87127.0,87109.0,0.00030548]
[1745206547939,0.0415,87127.0,87110.0,0.00229541]
[1745206548277,0.0415,87127.0,87109.0,0.00030548]
[1745206549266,0.0345,87127.0,87109.0,0.00030548]
[1745206549907,0.0474,87128.0,87110.0,0.98248]
[1745206550109,0.004,87129.0,87112.0,0.0482]
[1745206550274,0.004,87129.0,87112.0,0.16764791]
[1745206552433,0.004,87129.0,87112.0,0.11944791]
[1745206552972,0.004,87129.0,87113.0,0.01382536]
[1745206553176,0.0479,87128.0,87113.0,0.01382536]
[1745206553999,0.0479,87128.0,87110.0,0.98248]
[1745206554207,0.0479,87128.0,87111.0,0.11564959]
[1745206554409,0.09185741,87124.0,87112.0,0.10432]
[1745206554614,0.21130532,87124.0,87113.0,0.01132504]
[1745206557232,0.20430532,87124.0,87113.0,0.01132504]
[1745206557366,0.20530532,87124.0,87113.0,0.01132504]
[1745206557565,0.0479,87123.0,87113.0,0.01132504]
[1745206557796,0.0483,87122.0,87113.0,0.01132504]
[1745206559697,0.0483,87122.0,87113.0,0.01362066]
[1745206559909,0.25571533,87121.0,87113.0,0.01132504]
[1745206562341,0.23464805,87121.0,87115.0,0.34]
[1745206562537,0.0479,87138.0,87115.0,0.45944791]
[1745206562735,0.0479,87138.0,87116.0,0.01227508]
[1745206562997,0.12029311,87135.0,87116.0,0.01227508]
[1745206563627,0.09185741,87127.0,87116.0,0.01227508]
[1745206563929,0.11944791,87134.0,87113.0,0.341]
[1745206564153,0.11944791,87134.0,87117.0,0.0131723]
[1745206564394,0.11944791,87134.0,87113.0,0.341]
[1745206564618,0.01454085,87133.0,87113.0,0.341]
[1745206564851,0.01454085,87131.0,87113.0,0.341]
[1745206565035,0.16814791,87130.0,87113.0,0.341]
[1745206565239,0.0467,87129.0,87113.0,0.341]
[1745206565474,0.11944791,87128.0,87113.0,0.341]
[1745206565722,0.15856185,87127.0,87113.0,0.341]
[1745206565918,0.11944791,87126.0,87113.0,0.341]
[1745206566264,0.0467,87125.0,87113.0,0.001]
[1745206566463,0.01454085,87123.0,87113.0,0.001]
[1745206566672,0.0954,87120.0,87113.0,0.001]
[1745206566866,0.11944791,87119.0,87113.0,0.001]
[1745206568022,0.11944791,87119.0,87114.0,0.01356102]
[1745206571591,0.15856185,87118.0,87114.0,0.01356102]
[1745206571919,0.11944791,87117.0,87114.0,0.01356102]
[1745206572564,0.11244791,87117.0,87114.0,0.01356102]
[1745206574207,0.0467,87116.0,87114.0,0.01356102]
[1745206574443,0.11944791,87115.0,87114.0,0.01356102]
[1745206576618,0.13398876,87115.0,87114.0,0.01356102]
[1745206577304,0.29255061,87115.0,87114.0,0.01356102]
[1745206577756,0.38895061,87115.0,87114.0,0.01356102]
[1745206580268,0.38195061,87115.0,87114.0,0.01356102]
[1745206582733,0.01454085,87114.0,87095.0,0.00061287]
[1745206582956,0.01454085,87112.0,87096.0,0.10428]
[1745206583177,0.01454085,87110.0,87096.0,0.10428]
[1745206583441,0.01454085,87108.0,87097.0,0.00030448]
[1745206583640,0.01454085,87106.0,87097.0,0.00030448]
[1745206583877,0.11944791,87105.0,87097.0,0.00030448]
[1745206586145,0.15856185,87104.0,87097.0,0.00030448]
[1745206586361,0.11944791,87103.0,87097.0,0.00030448]
[1745206587400,0.15856185,87104.0,87097.0,0.00030448]
[1745206587703,0.15856185,87104.0,87098.0,0.0493]
[1745206587908,0.15856185,87104.0,87098.0,0.04957829]
[1745206587909,0.15156185,87104.0,87098.0,0.04957829]
[1745206588196,0.15156185,87104.0,87098.0,0.00027829]
[1745206588654,0.15156185,87104.0,87096.0,0.10428]
[1745206588870,0.15156185,87104.0,87099.0,0.00030443]